[Event "Tournoi de MI de l'Echiquier du Pays de Bray"]
[Site "Gournay-en-Bray, France"]
[Date "2023.05.17"]
[Round "5.3"]
[White "LEFEBVRE, Hervé"]
[Black "DGEBUADZE, Alexander"]
[Result "0-1"]
[TimeControl "1h30/40 + 30 (30s/c)"]
[WhiteTitle "FM"]
[BlackTitle "GM"]
[WhiteFideId "607363"]
[BlackFideId "203882"]
[WhiteElo "2161"]
[BlackElo "2435"]

1. d4 {[%clk 01:30:40]} {[%emt 00:00:19]} Nf6 {[%clk 01:30:20]} {[%emt
00:00:40]} 2. Nf3 {[%clk 01:30:48]} {[%emt 00:00:22]} d6 {[%clk 01:29:38]}
{[%emt 00:01:12]} 3. c4 {[%emt 00:00:55]} g6 {[%clk 01:29:52]} {[%emt
00:00:12]} 4. Nc3 {[%clk 01:30:41]} {[%emt 00:00:15]} Bf5 {[%clk 01:30:02]}
{[%emt 00:00:20]} 5. Ng5 {[%clk 01:16:39]} {[%emt 00:14:33]} h6 {[%clk
01:17:43]} {[%emt 00:12:49]} 6. e4 {[%clk 01:16:40]} {[%emt 00:00:29]} Bg4
{[%clk 01:17:56]} {[%emt 00:00:16]} 7. Nf3 {[%clk 01:16:52]} {[%emt 00:00:19]}
Nc6 {[%clk 01:16:03]} {[%emt 00:02:22]} 8. d5 {[%clk 01:13:53]} {[%emt
00:03:29]} Ne5 {[%clk 01:08:16]} {[%emt 00:08:17]} 9. Be2 {[%clk 01:14:18]}
{[%emt 00:00:05]} Nxf3+ {[%clk 01:07:58]} {[%emt 00:00:47]} 10. gxf3 {[%clk
01:00:43]} {[%emt 00:14:06]} Bh3 {[%clk 01:08:12]} {[%emt 00:00:16]} 11. Qd3
{[%clk 01:00:55]} {[%emt 00:00:18]} c6 {[%clk 00:58:53]} {[%emt 00:09:49]} 12.
f4 {[%clk 00:59:52]} {[%emt 00:01:33]} Bd7 {[%clk 00:54:15]} {[%emt 00:05:07]}
13. e5 {[%clk 00:27:44]} {[%emt 00:32:39]} Bf5 {[%clk 00:54:37]} {[%emt
00:00:08]} 14. Qe3 {[%clk 00:28:02]} {[%emt 00:00:12]} dxe5 {[%clk 00:51:22]}
{[%emt 00:03:45]} 15. fxe5 {[%clk 00:28:24]} {[%emt 00:00:08]} Nd7 {[%clk
00:51:38]} {[%emt 00:00:13]} 16. f4 {[%clk 00:26:18]} {[%emt 00:02:36]} e6
{[%clk 00:47:36]} {[%emt 00:04:32]} 17. Bd2 {[%clk 00:16:50]} {[%emt 00:09:57]}
Bc5 {[%clk 00:39:41]} {[%emt 00:08:25]} 18. Qg3 {[%clk 00:16:59]} {[%emt
00:00:22]} cxd5 {[%clk 00:39:41]} {[%emt 00:00:29]} 19. cxd5 {[%clk 00:17:17]}
{[%emt 00:00:13]} exd5 {[%clk 00:34:48]} {[%emt 00:05:23]} 20. Bg4 {[%clk
00:15:31]} {[%emt 00:02:16]} d4 {[%clk 00:31:23]} {[%emt 00:03:55]} 21. Bxf5
{[%clk 00:15:40]} {[%emt 00:00:22]} gxf5 {[%clk 00:29:01]} {[%emt 00:02:51]} 22.
O-O-O {[%clk 00:12:50]} {[%emt 00:03:20]} Nf8 {[%clk 00:24:42]} {[%emt
00:04:49]} 23. Rhe1 {[%clk 00:01:57]} {[%emt 00:11:23]} Ne6 {[%clk 00:24:08]}
{[%emt 00:01:03]} 24. Qh3 {[%clk 00:00:58]} {[%emt 00:01:29]} dxc3 {[%clk
00:21:25]} {[%emt 00:03:12]} 25. Bxc3 {[%clk 00:01:17]} {[%emt 00:00:12]} Qe7
{[%clk 00:18:53]} {[%emt 00:03:01]} 26. Qxf5 {[%clk 00:01:32]} {[%emt
00:00:16]} Bb4 {[%clk 00:16:32]} {[%emt 00:02:51]} 27. Qe4 {[%clk 00:00:36]}
{[%emt 00:01:26]} Bxc3 {[%clk 00:15:57]} {[%emt 00:01:05]} 28. Qa4+ {[%clk
00:00:40]} {[%emt 00:00:26]} b5 {[%clk 00:12:27]} {[%emt 00:03:59]} 29. Qxb5+
{[%clk 00:01:04]} {[%emt 00:00:06]} Kf8 {[%clk 00:12:54]} {[%emt 00:00:03]} 30.
bxc3 {[%clk 00:01:31]} {[%emt 00:00:04]} Rg8 {[%clk 00:10:34]} {[%emt
00:02:50]} 31. Rd7 {[%clk 00:01:28]} {[%emt 00:00:34]} Qa3+ {[%clk 00:09:12]}
{[%emt 00:01:51]} 32. Kb1 {[%clk 00:01:50]} {[%emt 00:00:09]} Rg2 {[%clk
00:08:54]} {[%emt 00:00:47]} 33. Qb4+ {[%clk 00:00:38]} {[%emt 00:01:43]} Qxb4+
{[%clk 00:09:15]} {[%emt 00:00:09]} 34. cxb4 {[%clk 00:01:07]} Rf2 {[%clk
00:09:22]} {[%emt 00:00:23]} 0-1

[Event "Tournoi de MI de l'Echiquier du Pays de Bray"]
[Site "Gournay-en-Bray, France"]
[Date "2023.05.17"]
[Round "5.4"]
[White "DUBESSAY, Bastien"]
[Black "DECUIGNIERE, Tom"]
[Result "1/2-1/2"]
[TimeControl "1h30/40 + 30 (30s/c)"]
[WhiteTitle "FM"]
[BlackTitle "FM"]
[WhiteFideId "650048"]
[BlackFideId "26093820"]
[WhiteElo "2283"]
[BlackElo "2396"]

1. d4 {[%clk 01:30:35]} {[%emt 00:00:24]} Nf6 {[%clk 01:30:51]} {[%emt
00:00:09]} 2. c4 {[%clk 01:31:01]} {[%emt 00:00:05]} e6 {[%clk 01:31:12]}
{[%emt 00:00:09]} 3. Nc3 {[%clk 01:31:24]} {[%emt 00:00:07]} Bb4 {[%clk
01:31:32]} {[%emt 00:00:10]} 4. f3 {[%clk 01:31:43]} {[%emt 00:00:11]} d5
{[%clk 01:30:04]} {[%emt 00:01:58]} 5. a3 {[%clk 01:31:57]} {[%emt 00:00:16]}
Bxc3+ {[%clk 01:29:36]} {[%emt 00:00:58]} 6. bxc3 {[%clk 01:32:21]} {[%emt
00:00:06]} c5 {[%clk 01:29:28]} {[%emt 00:00:38]} 7. cxd5 {[%clk 01:32:14]}
{[%emt 00:00:37]} Nxd5 {[%clk 01:29:48]} {[%emt 00:00:10]} 8. dxc5 {[%clk
01:32:28]} {[%emt 00:00:16]} Qa5 {[%clk 01:25:39]} {[%emt 00:04:39]} 9. e4
{[%clk 01:32:42]} {[%emt 00:00:16]} Nf6 {[%clk 01:25:58]} {[%emt 00:00:10]} 10.
Be3 {[%clk 01:31:43]} {[%emt 00:01:27]} O-O {[%clk 01:25:28]} {[%emt 00:01:02]}
11. Kf2 {[%clk 01:28:53]} {[%emt 00:03:20]} Nfd7 {[%clk 01:18:18]} {[%emt
00:07:40]} 12. Qb3 {[%clk 01:24:16]} {[%emt 00:05:08]} Qc7 {[%clk 01:17:40]}
{[%emt 00:01:08]} 13. Bb5 {[%clk 01:14:59]} {[%emt 00:09:46]} Nxc5 {[%clk
01:13:54]} {[%emt 00:04:17]} 14. Qc4 {[%clk 01:14:10]} {[%emt 00:01:20]} b6
{[%clk 01:13:01]} {[%emt 00:01:23]} 15. Ne2 {[%clk 01:11:38]} {[%emt 00:03:02]}
e5 {[%clk 01:07:30]} {[%emt 00:06:01]} 16. Qd5 {[%clk 00:55:17]} {[%emt
00:16:51]} Bb7 {[%clk 01:05:12]} {[%emt 00:02:48]} 17. Qa2 {[%clk 00:55:31]}
{[%emt 00:00:16]} a6 {[%clk 00:57:26]} {[%emt 00:08:16]} 18. Bc4 {[%clk
00:53:54]} {[%emt 00:02:07]} b5 {[%clk 00:57:09]} {[%emt 00:00:48]} 19. Bd5
{[%clk 00:53:49]} {[%emt 00:00:34]} Nbd7 {[%clk 00:56:05]} {[%emt 00:01:34]} 20.
Rhd1 {[%clk 00:48:31]} {[%emt 00:05:48]} Nb6 {[%clk 00:54:29]} {[%emt
00:01:36]} 21. Bxb7 {[%clk 00:36:05]} {[%emt 00:12:55]} Nxb7 {[%clk 00:55:14]}
{[%emt 00:00:16]} 22. Kg1 {[%clk 00:36:21]} {[%emt 00:00:14]} Nc4 {[%clk
00:50:41]} {[%emt 00:05:02]} 23. Bf2 {[%clk 00:35:24]} {[%emt 00:01:27]} Rfd8
{[%clk 00:48:53]} {[%emt 00:02:18]} 24. a4 {[%clk 00:27:46]} {[%emt 00:08:09]}
Rxd1+ {[%clk 00:46:17]} {[%emt 00:03:06]} 25. Rxd1 {[%clk 00:28:14]} {[%emt
00:00:02]} Rd8 {[%clk 00:44:48]} {[%emt 00:01:59]} 26. Rxd8+ {[%clk 00:17:12]}
{[%emt 00:11:31]} Qxd8 {[%clk 00:45:14]} {[%emt 00:00:04]} 27. Qc2 {[%clk
00:17:32]} {[%emt 00:00:10]} Na3 {[%clk 00:44:08]} {[%emt 00:01:36]} 28. Qb3
{[%clk 00:17:52]} {[%emt 00:00:10]} Na5 {[%clk 00:29:11]} {[%emt 00:15:27]} 29.
Qd5 {[%clk 00:18:17]} {[%emt 00:00:05]} Qxd5 {[%clk 00:29:38]} {[%emt
00:00:03]} 30. exd5 {[%clk 00:18:42]} {[%emt 00:00:04]} bxa4 {[%clk 00:28:45]}
{[%emt 00:01:24]} 31. d6 {[%clk 00:18:54]} {[%emt 00:00:18]} Nb7 {[%clk
00:28:10]} {[%emt 00:01:06]} 32. d7 {[%clk 00:18:08]} {[%emt 00:01:16]} Nc4
{[%clk 00:27:25]} {[%emt 00:01:15]} 33. Bc5 {[%clk 00:18:02]} {[%emt 00:00:36]}
Nca5 {[%clk 00:27:18]} {[%emt 00:00:37]} 34. c4 {[%clk 00:15:22]} {[%emt
00:03:11]} f6 {[%clk 00:21:48]} {[%emt 00:06:00]} 35. Nc3 {[%clk 00:10:16]}
{[%emt 00:05:35]} Kf7 {[%clk 00:19:48]} {[%emt 00:02:30]} 36. Bb6 {[%clk
00:10:20]} {[%emt 00:00:26]} Nc6 {[%clk 00:19:17]} {[%emt 00:01:01]} 37. Nxa4
{[%clk 00:10:39]} {[%emt 00:00:11]} Ke7 {[%clk 00:19:11]} {[%emt 00:00:36]} 38.
Kf2 {[%clk 00:10:03]} {[%emt 00:01:06]} Kxd7 {[%clk 00:18:44]} {[%emt
00:00:58]} 39. Ke3 {[%clk 00:09:56]} {[%emt 00:00:37]} Ke6 {[%clk 00:16:46]}
{[%emt 00:02:28]} 40. Kd3 {[%clk 00:08:16]} {[%emt 00:02:10]} f5 {[%clk
00:13:52]} {[%emt 00:03:25]} 41. Ke3 {[%clk 00:28:34]} {[%emt 00:10:41]} h5
{[%clk 00:36:41]} {[%emt 00:08:11]} 42. h3 {[%clk 00:28:06]} {[%emt 00:00:58]}
g5 {[%clk 00:35:53]} {[%emt 00:01:18]} 43. Kd3 {[%clk 00:22:59]} {[%emt
00:05:37]} Ne7 {[%clk 00:31:06]} {[%emt 00:05:18]} 44. Be3 {[%clk 00:21:03]}
{[%emt 00:02:26]} f4 {[%clk 00:29:17]} {[%emt 00:02:18]} 45. Bf2 {[%clk
00:20:15]} {[%emt 00:01:18]} Kf5 {[%clk 00:19:32]} {[%emt 00:10:15]} 46. Nc3
{[%clk 00:17:25]} {[%emt 00:03:20]} Nc6 {[%clk 00:16:44]} {[%emt 00:03:18]} 47.
c5 {[%clk 00:16:00]} {[%emt 00:01:56]} Nba5 {[%clk 00:15:17]} {[%emt 00:01:58]}
48. Ne4 {[%clk 00:14:59]} {[%emt 00:01:01]} Nb4+ {[%clk 00:14:05]} {[%emt
00:01:42]} 49. Kc3 {[%clk 00:15:06]} {[%emt 00:00:52]} Nd5+ {[%clk 00:14:30]}
{[%emt 00:00:05]} 50. Kd3 {[%clk 00:15:23]} {[%emt 00:00:14]} Nc6 {[%clk
00:13:17]} {[%emt 00:01:44]} 51. Nd6+ {[%clk 00:15:19]} {[%emt 00:00:33]} Ke6
{[%clk 00:08:30]} {[%emt 00:05:17]} 52. Ne4 {[%clk 00:15:42]} {[%emt 00:00:07]}
Kf5 {[%clk 00:08:03]} {[%emt 00:00:57]} 53. Nd6+ {[%clk 00:16:07]} {[%emt
00:00:05]} Kf6 {[%clk 00:07:23]} {[%emt 00:01:09]} 54. Ne4+ {[%clk 00:16:17]}
{[%emt 00:00:21]} Kg6 {[%clk 00:05:27]} {[%emt 00:02:26]} 55. Kc4 {[%clk
00:14:46]} {[%emt 00:02:01]} Nde7 {[%clk 00:03:46]} {[%emt 00:02:12]} 56. Kd3
{[%clk 00:13:17]} {[%emt 00:01:59]} Kf5 {[%clk 00:01:34]} {[%emt 00:02:43]} 57.
Nd6+ {[%clk 00:13:42]} {[%emt 00:00:05]} Ke6 {[%clk 00:00:47]} {[%emt
00:01:17]} 58. Ne4 {[%clk 00:14:05]} {[%emt 00:00:07]} Kf5 {[%clk 00:00:47]}
{[%emt 00:00:30]} 59. Nd6+ {[%clk 00:14:31]} {[%emt 00:00:04]} Ke6 {[%clk
00:01:09]} {[%emt 00:00:09]} 60. Ne4 {[%clk 00:14:56]} {[%emt 00:00:04]} Kf5
{[%clk 00:01:29]} {[%emt 00:00:10]} 1/2-1/2

[Event "Tournoi de MI de l'Echiquier du Pays de Bray"]
[Site "Gournay-en-Bray, France"]
[Date "2023.05.17"]
[Round "5.5"]
[White "MOUHAMAD, Joachim"]
[Black "NIKCEVIC, Nebosja"]
[Result "1/2-1/2"]
[TimeControl "1h30/40 + 30 (30s/c)"]
[WhiteTitle "FM"]
[BlackTitle "GM"]
[WhiteFideId "656410"]
[BlackFideId "901776"]
[WhiteElo "2238"]
[BlackElo "2373"]

1. e4 {[%clk 01:30:30]} {[%emt 00:00:29]} e5 {[%clk 01:30:40]} {[%emt
00:00:20]} 2. Nf3 {[%clk 01:30:34]} {[%emt 00:00:25]} Nc6 {[%clk 01:30:32]}
{[%emt 00:00:38]} 3. Bb5 {[%emt 00:00:55]} a6 {[%clk 01:30:40]} {[%emt
00:00:18]} 4. Ba4 {[%clk 01:30:33]} {[%emt 00:00:11]} Nf6 {[%clk 01:30:56]}
{[%emt 00:00:14]} 5. O-O {[%clk 01:30:48]} {[%emt 00:00:15]} Be7 {[%clk
01:31:07]} {[%emt 00:00:19]} 6. d3 {[%clk 01:30:45]} {[%emt 00:00:32]} d6
{[%clk 01:31:24]} {[%emt 00:00:14]} 7. c3 {[%clk 01:30:17]} {[%emt 00:00:58]}
O-O {[%clk 01:30:13]} {[%emt 00:01:40]} 8. Re1 {[%clk 01:29:58]} {[%emt
00:00:49]} Re8 {[%clk 01:27:50]} {[%emt 00:02:54]} 9. Nbd2 {[%clk 01:29:53]}
{[%emt 00:00:35]} Bf8 {[%clk 01:27:46]} {[%emt 00:00:35]} 10. Nf1 {[%clk
01:29:20]} {[%emt 00:01:01]} h6 {[%clk 01:27:32]} {[%emt 00:00:46]} 11. Ng3
{[%clk 01:29:06]} {[%emt 00:00:43]} b5 {[%clk 01:23:45]} {[%emt 00:04:18]} 12.
Bb3 {[%clk 01:29:14]} {[%emt 00:00:22]} Na5 {[%clk 01:23:49]} {[%emt 00:00:26]}
13. Bc2 {[%clk 01:29:10]} {[%emt 00:00:34]} c5 {[%clk 01:24:03]} {[%emt
00:00:16]} 14. d4 {[%clk 01:29:05]} {[%emt 00:00:35]} Qc7 {[%clk 01:23:44]}
{[%emt 00:00:49]} 15. d5 {[%clk 01:28:59]} {[%emt 00:00:37]} c4 {[%clk
01:22:48]} {[%emt 00:01:26]} 16. b4 {[%clk 01:22:42]} {[%emt 00:06:47]} cxb3
{[%clk 01:21:36]} {[%emt 00:01:42]} 17. axb3 {[%clk 01:23:04]} {[%emt
00:00:08]} Nb7 {[%clk 01:21:53]} {[%emt 00:00:13]} 18. Bd2 {[%clk 01:22:26]}
{[%emt 00:01:08]} Nc5 {[%clk 01:22:12]} {[%emt 00:00:11]} 19. Qe2 {[%clk
01:18:52]} {[%emt 00:04:04]} Qb8 {[%clk 01:15:47]} {[%emt 00:06:55]} 20. Ra2
{[%clk 01:15:49]} {[%emt 00:03:33]} Re7 {[%emt 00:20:16]} 21. Rea1 {[%clk
01:08:36]} Rea7 {[%clk 01:03:08]} {[%emt 00:01:06]} 22. b4 {[%emt 00:04:02]}
Ncd7 {[%clk 01:03:16]} {[%emt 00:00:14]} 23. c4 {[%clk 01:03:25]} {[%emt
00:02:17]} bxc4 {[%clk 00:51:15]} {[%emt 00:12:30]} 24. Qxc4 {[%clk 01:03:47]}
{[%emt 00:00:08]} Be7 {[%clk 00:44:02]} {[%emt 00:07:42]} 25. Qe2 {[%clk
01:01:19]} {[%emt 00:02:57]} Bd8 {[%clk 00:40:16]} {[%emt 00:04:17]} 26. Bd3
{[%clk 01:00:39]} {[%emt 00:01:10]} a5 {[%clk 00:36:23]} {[%emt 00:04:24]} 27.
bxa5 {[%clk 01:00:05]} {[%emt 00:01:05]} Nc5 {[%clk 00:36:12]} {[%emt
00:00:41]} 28. Bc4 {[%clk 00:57:56]} {[%emt 00:02:39]} Nb3 {[%clk 00:31:43]}
{[%emt 00:04:59]} 29. Bxb3 {[%clk 00:50:03]} {[%emt 00:08:23]} Qxb3 {[%clk
00:32:08]} {[%emt 00:00:05]} 30. Ra3 {[%clk 00:49:14]} {[%emt 00:01:19]} Qb2
{[%clk 00:27:04]} {[%emt 00:05:33]} 31. Qe1 {[%clk 00:47:45]} {[%emt 00:02:00]}
Rb8 {[%clk 00:23:04]} {[%emt 00:04:31]} 32. h3 {[%clk 00:47:10]} {[%emt
00:01:04]} Ba6 {[%clk 00:20:57]} {[%emt 00:02:37]} 33. Bc3 {[%clk 00:39:15]}
{[%emt 00:08:26]} Qb5 {[%clk 00:19:17]} {[%emt 00:02:10]} 34. Nd2 {[%clk
00:33:41]} {[%emt 00:06:04]} Rab7 {[%clk 00:16:58]} {[%emt 00:02:49]} 35. Nf5
{[%clk 00:31:53]} {[%emt 00:02:17]} Qd7 {[%clk 00:15:34]} {[%emt 00:01:54]} 36.
Qe3 {[%clk 00:28:58]} {[%emt 00:03:25]} Nxd5 {[%clk 00:12:56]} {[%emt
00:03:08]} 37. Nxh6+ {[%clk 00:19:50]} {[%emt 00:09:39]} gxh6 {[%clk 00:13:21]}
{[%emt 00:00:05]} 38. exd5 {[%clk 00:20:09]} {[%emt 00:00:10]} Bg5 {[%clk
00:13:36]} {[%emt 00:00:15]} 39. Qg3 {[%clk 00:19:40]} {[%emt 00:00:59]} Kf8
{[%clk 00:11:03]} {[%emt 00:03:03]} 40. Qf3 {[%clk 00:00:56]} {[%emt 00:19:14]}
f5 {[%clk 00:07:12]} {[%emt 00:04:21]} 41. Rd1 {[%clk 00:21:03]} {[%emt
00:10:53]} Kg8 {[%clk 00:36:43]} {[%emt 00:01:30]} 42. Qh5 {[%clk 00:19:07]}
{[%emt 00:02:27]} Qf7 {[%clk 00:35:18]} {[%emt 00:01:55]} 43. Qxf7+ {[%clk
00:19:16]} {[%emt 00:00:22]} Kxf7 {[%clk 00:35:44]} {[%emt 00:00:04]} 44. Raa1
{[%clk 00:15:58]} {[%emt 00:03:48]} Rc8 {[%clk 00:32:02]} {[%emt 00:04:11]} 45.
Ra3 {[%clk 00:14:49]} {[%emt 00:01:39]} Rc5 {[%clk 00:25:43]} {[%emt 00:06:48]}
46. Nf1 {[%clk 00:13:10]} {[%emt 00:02:09]} f4 {[%clk 00:21:02]} {[%emt
00:05:12]} 47. Be1 {[%clk 00:11:32]} {[%emt 00:02:08]} Rbb5 {[%clk 00:20:57]}
{[%emt 00:00:35]} 48. Rc3 {[%clk 00:07:42]} {[%emt 00:04:21]} Rxd5 {[%clk
00:11:36]} {[%emt 00:09:51]} 49. Rxd5 {[%clk 00:07:19]} {[%emt 00:00:52]} Rxd5
{[%clk 00:12:02]} {[%emt 00:00:04]} 50. Rc6 {[%clk 00:06:39]} {[%emt 00:01:11]}
Bb5 {[%clk 00:12:19]} {[%emt 00:00:13]} 51. Rc1 {[%clk 00:04:41]} {[%emt
00:02:28]} Rd4 {[%clk 00:06:10]} {[%emt 00:06:38]} 52. Rb1 {[%clk 00:04:23]}
{[%emt 00:00:48]} Bd3 {[%clk 00:05:01]} {[%emt 00:01:39]} 53. Ra1 {[%clk
00:03:56]} {[%emt 00:00:58]} Ba6 {[%clk 00:05:22]} {[%emt 00:00:08]} 54. Nd2
{[%clk 00:01:16]} {[%emt 00:03:10]} e4 {[%clk 00:03:42]} {[%emt 00:02:10]} 55.
Nf1 {[%clk 00:01:28]} {[%emt 00:00:18]} Rd3 {[%clk 00:03:06]} {[%emt 00:01:06]}
56. Rb1 {[%clk 00:01:32]} {[%emt 00:00:27]} e3 {[%clk 00:01:12]} {[%emt
00:02:24]} 57. Nh2 {[%clk 00:01:10]} {[%emt 00:00:50]} Ra3 {[%clk 00:00:53]}
{[%emt 00:00:50]} 58. fxe3 {[%clk 00:00:53]} {[%emt 00:00:48]} fxe3 {[%clk
00:01:19]} {[%emt 00:00:04]} 59. Nf3 {[%clk 00:01:04]} {[%emt 00:00:19]} Be7
{[%clk 00:01:21]} {[%emt 00:00:28]} 60. Rb6 {[%clk 00:01:07]} {[%emt 00:00:28]}
Bc4 {[%clk 00:01:37]} {[%emt 00:00:12]} 61. Kh2 {[%clk 00:00:48]} {[%emt
00:00:49]} Bd8 {[%clk 00:00:52]} {[%emt 00:01:16]} 62. Rb8 {[%clk 00:00:47]}
{[%emt 00:00:32]} Bxa5 {[%clk 00:00:46]} {[%emt 00:00:35]} 63. Rb7+ {[%clk
00:00:49]} {[%emt 00:00:28]} Ke6 {[%clk 00:00:43]} {[%emt 00:00:32]} 64. Nd4+
{[%clk 00:00:53]} {[%emt 00:00:26]} Kd5 {[%clk 00:00:50]} {[%emt 00:00:23]} 65.
Nc2 {[%clk 00:01:22]} {[%emt 00:00:01]} Bxe1 {[%clk 00:00:54]} {[%emt
00:00:25]} 66. Nxa3 {[%clk 00:01:26]} {[%emt 00:00:26]} Bd3 {[%clk 00:01:19]}
{[%emt 00:00:05]} 67. Re7 {[%clk 00:00:31]} {[%emt 00:01:25]} Bf2 {[%clk
00:01:39]} {[%emt 00:00:09]} 68. g4 {[%clk 00:00:37]} {[%emt 00:00:23]} e2
{[%clk 00:02:00]} {[%emt 00:00:09]} 69. Nc2 {[%clk 00:00:54]} {[%emt 00:00:14]}
Be4 {[%clk 00:01:19]} {[%emt 00:01:11]} 70. Nb4+ {[%clk 00:00:35]} {[%emt
00:00:49]} Kd4 {[%clk 00:01:30]} {[%emt 00:00:19]} 71. Nc2+ {[%clk 00:01:03]}
{[%emt 00:00:02]} Kd3 {[%clk 00:01:00]} {[%emt 00:01:00]} 72. Nb4+ {[%clk
00:01:32]} Ke3 {[%clk 00:00:38]} {[%emt 00:00:51]} 73. Nc2+ {[%clk 00:01:47]}
{[%emt 00:00:16]} Kd3 {[%clk 00:00:47]} {[%emt 00:00:21]} 74. Nb4+ {[%clk
00:02:16]} {[%emt 00:00:02]} Kc3 {[%clk 00:00:34]} {[%emt 00:00:42]} 75. Rxe4
{[%clk 00:02:00]} {[%emt 00:00:46]} e1=Q {[%clk 00:01:03]} {[%emt 00:00:02]} 76.
Nd5+ {[%clk 00:01:53]} {[%emt 00:00:37]} Kd3 {[%clk 00:01:13]} {[%emt
00:00:19]} 77. Rxe1 {[%clk 00:02:09]} {[%emt 00:00:14]} Bxe1 {[%clk 00:01:41]}
{[%emt 00:00:02]} 78. Kg2 {[%clk 00:02:15]} {[%emt 00:00:24]} Ke4 {[%clk
00:01:15]} {[%emt 00:00:56]} 79. Nf6+ {[%clk 00:02:04]} {[%emt 00:00:41]} Kf4
{[%clk 00:01:06]} {[%emt 00:00:38]} 80. Ng8 {[%clk 00:01:32]} {[%emt 00:01:03]}
Kg5 {[%clk 00:01:13]} {[%emt 00:00:22]} 81. Kf3 {[%clk 00:01:11]} {[%emt
00:00:51]} Bd2 {[%clk 00:00:58]} {[%emt 00:00:45]} 82. Ke4 {[%clk 00:01:18]}
{[%emt 00:00:24]} Kh4 {[%clk 00:01:07]} {[%emt 00:00:21]} 83. Kd5 {[%clk
00:01:33]} {[%emt 00:00:15]} Bg5 {[%clk 00:01:29]} {[%emt 00:00:08]} 84. Kxd6
{[%clk 00:01:45]} {[%emt 00:00:18]} Kxh3 {[%clk 00:01:54]} {[%emt 00:00:05]} 85.
Nxh6 {[%clk 00:02:09]} {[%emt 00:00:06]} 1/2-1/2

[ePGN "0.1;DGT LiveChess/2.2.5"]

[Event "Tournoi de MI de l'Echiquier du Pays de Bray"]
[Site "Gournay-en-Bray, France"]
[Date "2023.05.18"]
[Round "6.1"]
[White "NIKCEVIC, Nebosja"]
[Black "ROSHKA, Yevgeniy"]
[Result "1/2-1/2"]
[TimeControl "1h30/40 + 30 (30s/c)"]
[WhiteTitle "GM"]
[BlackTitle "IM"]
[WhiteFideId "901776"]
[BlackFideId "14129558"]
[WhiteElo "2373"]
[BlackElo "2508"]

1. d4 {[%clk 01:30:57]} {[%emt 00:00:02]} g6 {[%clk 01:29:50]} {[%emt
00:01:05]} 2. c4 {[%clk 01:31:09]} {[%emt 00:00:23]} Bg7 {[%clk 01:30:16]}
{[%emt 00:00:05]} 3. e4 {[%clk 01:31:31]} {[%emt 00:00:07]} d6 {[%clk
01:30:43]} {[%emt 00:00:04]} 4. Ne2 {[%clk 01:30:08]} {[%emt 00:01:53]} e5
{[%clk 01:30:56]} {[%emt 00:00:17]} 5. Nbc3 {[%clk 01:28:10]} {[%emt 00:02:27]}
Nc6 {[%clk 01:31:21]} {[%emt 00:00:06]} 6. d5 {[%clk 01:27:59]} {[%emt
00:00:41]} Nce7 {[%clk 01:31:36]} {[%emt 00:00:15]} 7. Ng3 {[%clk 01:22:58]}
{[%emt 00:05:31]} f5 {[%clk 01:30:08]} {[%emt 00:01:58]} 8. exf5 {[%clk
01:23:06]} {[%emt 00:00:22]} Nxf5 {[%clk 01:30:33]} {[%emt 00:00:06]} 9. Nxf5
{[%clk 01:21:35]} {[%emt 00:02:01]} Bxf5 {[%clk 01:30:38]} {[%emt 00:00:26]} 10.
Be2 {[%clk 01:18:29]} {[%emt 00:03:35]} Bh6 {[%clk 01:29:35]} {[%emt 00:01:33]}
11. Bxh6 {[%clk 01:17:35]} {[%emt 00:01:24]} Nxh6 {[%clk 01:29:52]} {[%emt
00:00:13]} 12. Qd2 {[%clk 01:17:59]} {[%emt 00:00:05]} Nf7 {[%clk 01:29:50]}
{[%emt 00:00:32]} 13. g4 {[%clk 01:02:06]} {[%emt 00:16:23]} Bd7 {[%clk
01:30:14]} {[%emt 00:00:06]} 14. Ne4 {[%clk 01:02:22]} {[%emt 00:00:13]} Qh4
{[%clk 01:29:02]} {[%emt 00:01:42]} 15. Qe3 {[%clk 01:01:28]} {[%emt 00:01:24]}
h5 {[%clk 01:24:07]} {[%emt 00:05:25]} 16. gxh5 {[%clk 00:56:41]} {[%emt
00:05:17]} gxh5 {[%clk 01:22:21]} {[%emt 00:02:17]} 17. O-O-O {[%clk 00:53:57]}
{[%emt 00:03:14]} Ke7 {[%clk 01:20:00]} {[%emt 00:02:50]} 18. Rdg1 {[%clk
00:53:34]} {[%emt 00:00:52]} Qf4 {[%clk 01:16:01]} {[%emt 00:04:29]} 19. h4
{[%clk 00:49:44]} {[%emt 00:04:20]} Bf5 {[%clk 01:11:38]} {[%emt 00:04:54]} 20.
Ng5 {[%clk 00:48:52]} {[%emt 00:01:22]} Qxe3+ {[%clk 01:04:52]} {[%emt
00:07:17]} 21. fxe3 {[%clk 00:49:11]} {[%emt 00:00:11]} Raf8 {[%clk 01:05:15]}
{[%emt 00:00:07]} 22. Nxf7 {[%clk 00:44:09]} {[%emt 00:05:32]} Rxf7 {[%clk
01:05:39]} {[%emt 00:00:05]} 23. Rg5 {[%clk 00:43:46]} {[%emt 00:00:53]} Be4
{[%clk 01:05:46]} {[%emt 00:00:24]} 24. Rf1 {[%clk 00:41:26]} {[%emt 00:02:50]}
Rxf1+ {[%clk 01:05:10]} {[%emt 00:01:07]} 25. Bxf1 {[%clk 00:41:52]} {[%emt
00:00:04]} Rf8 {[%clk 01:05:33]} {[%emt 00:00:07]} 26. Be2 {[%clk 00:40:53]}
{[%emt 00:01:29]} Rf2 {[%clk 01:05:57]} {[%emt 00:00:07]} 27. Kd1 {[%clk
00:25:28]} {[%emt 00:15:54]} Rh2 {[%clk 01:06:08]} {[%emt 00:00:19]} 28. Rg7+
{[%clk 00:22:52]} {[%emt 00:03:05]} Kd8 {[%clk 01:03:13]} {[%emt 00:03:25]} 29.
Rg8+ {[%clk 00:19:49]} {[%emt 00:03:33]} Ke7 {[%clk 01:03:37]} {[%emt
00:00:06]} 30. Rg7+ {[%clk 00:19:42]} {[%emt 00:00:37]} Kd8 {[%clk 01:04:01]}
{[%emt 00:00:06]} 1/2-1/2